[Event "Božićni turnir u VaraždinskimToplicama 26.12.2025."]
[Site "Varazdinske Toplice, Croatia"]
[Date "2025.12.26"]
[Round "4.5"]
[White "Sagovac, Kristijan"]
[Black "Bicanic, Mile"]
[Result "1-0"]
[TimeControl "10"]
[WhiteFideId "14542960"]
[BlackFideId "14579995"]
[WhiteElo "2014"]
[BlackElo "1761"]

1. e4 {[%clk 00:09:58]} c6 {[%clk 00:09:59]} 2. d4 {[%clk 00:09:57]} d5 {[%clk
00:09:57]} {[%emt 00:00:02]} 3. Nc3 {[%clk 00:09:56]} dxe4 {[%clk 00:09:55]}
{[%emt 00:00:03]} 4. Nxe4 {[%clk 00:09:55]} Nf6 {[%clk 00:09:52]} {[%emt
00:00:02]} 5. Nxf6+ {[%clk 00:09:52]} {[%emt 00:00:03]} exf6 {[%clk 00:09:51]}
{[%emt 00:00:02]} 6. Nf3 {[%clk 00:09:51]} {[%emt 00:00:01]} Bd6 {[%clk
00:09:49]} {[%emt 00:00:02]} 7. Be2 {[%clk 00:09:49]} {[%emt 00:00:01]} O-O
{[%clk 00:09:45]} {[%emt 00:00:04]} 8. O-O {[%clk 00:09:47]} {[%emt 00:00:02]}
Re8 {[%clk 00:09:44]} {[%emt 00:00:02]} 9. c3 {[%clk 00:09:45]} {[%emt
00:00:02]} Nd7 {[%clk 00:09:43]} {[%emt 00:00:01]} 10. Re1 {[%clk 00:09:41]}
{[%emt 00:00:03]} Nf8 {[%clk 00:09:42]} {[%emt 00:00:02]} 11. Bd2 {[%clk
00:09:38]} {[%emt 00:00:03]} Bg4 {[%clk 00:09:33]} {[%emt 00:00:09]} 12. Qb3
{[%clk 00:09:20]} {[%emt 00:00:18]} Qd7 {[%clk 00:09:27]} {[%emt 00:00:06]} 13.
Be3 {[%clk 00:09:09]} {[%emt 00:00:11]} b5 {[%clk 00:09:20]} {[%emt 00:00:07]}
14. a4 {[%clk 00:09:03]} {[%emt 00:00:06]} Be6 {[%clk 00:09:07]} {[%emt
00:00:13]} 15. c4 {[%clk 00:08:46]} {[%emt 00:00:17]} a6 {[%clk 00:08:46]}
{[%emt 00:00:21]} 16. d5 {[%clk 00:08:31]} {[%emt 00:00:15]} cxd5 {[%clk
00:07:58]} {[%emt 00:00:48]} 17. cxd5 {[%clk 00:08:28]} {[%emt 00:00:03]} Bg4
{[%clk 00:07:47]} {[%emt 00:00:11]} 18. axb5 {[%clk 00:07:56]} {[%emt
00:00:32]} Bxf3 {[%clk 00:07:35]} {[%emt 00:00:11]} 19. Bxf3 {[%clk 00:07:55]}
{[%emt 00:00:02]} axb5 {[%clk 00:07:32]} {[%emt 00:00:03]} 20. Be2 {[%clk
00:07:40]} {[%emt 00:00:15]} Rxa1 21. Rxa1 {[%clk 00:07:38]} Rb8 {[%clk
00:07:23]} {[%emt 00:00:05]} 22. Ra7 {[%clk 00:07:27]} {[%emt 00:00:12]} Qf5
{[%clk 00:06:57]} {[%emt 00:00:26]} 23. Bd3 {[%clk 00:06:59]} {[%emt 00:00:28]}
Qh5 {[%clk 00:06:51]} {[%emt 00:00:06]} 24. h3 {[%emt 00:00:21]} Qe5 {[%clk
00:06:37]} {[%emt 00:00:05]} 25. g3 {[%clk 00:06:41]} {[%emt 00:00:06]} b4
{[%clk 00:06:24]} {[%emt 00:00:14]} 26. Kg2 {[%clk 00:06:15]} {[%emt 00:00:25]}
Ng6 {[%clk 00:06:00]} {[%emt 00:00:24]} 27. Qc4 {[%clk 00:05:54]} {[%emt
00:00:21]} h6 {[%clk 00:05:25]} {[%emt 00:00:35]} 28. Bxg6 {[%clk 00:05:47]}
{[%emt 00:00:06]} fxg6 {[%clk 00:05:19]} {[%emt 00:00:06]} 29. Bf4 {[%clk
00:05:45]} {[%emt 00:00:02]} Qxb2 {[%clk 00:04:40]} {[%emt 00:00:40]} 30. Bxd6
{[%clk 00:05:43]} {[%emt 00:00:02]} Rd8 {[%clk 00:04:26]} {[%emt 00:00:14]} 31.
Qc7 {[%clk 00:05:26]} {[%emt 00:00:17]} 1-0

[Event "Božićni turnir u VaraždinskimToplicama 26.12.2025."]
[Site "Varazdinske Toplice, Croatia"]
[Date "2025.12.26"]
[Round "4.6"]
[White "Mesar, Darko"]
[Black "Srsan, Matija"]
[Result "0-1"]
[TimeControl "10"]
[WhiteFideId "14531038"]
[BlackFideId "14520001"]
[WhiteElo "1851"]
[BlackElo "1942"]

1. e4 {[%clk 00:09:57]} {[%emt 00:00:02]} c5 {[%clk 00:09:59]} {[%emt
00:00:02]} 2. Nf3 {[%clk 00:09:55]} {[%emt 00:00:02]} e6 {[%clk 00:09:54]}
{[%emt 00:00:05]} 3. d4 {[%clk 00:09:52]} {[%emt 00:00:03]} cxd4 {[%clk
00:09:53]} {[%emt 00:00:01]} 4. Nxd4 {[%clk 00:09:50]} {[%emt 00:00:02]} Nf6
{[%clk 00:09:52]} {[%emt 00:00:02]} 5. Nc3 {[%clk 00:09:48]} {[%emt 00:00:01]}
Bb4 {[%clk 00:09:50]} {[%emt 00:00:02]} 6. f3 {[%clk 00:09:40]} {[%emt
00:00:08]} Nc6 {[%clk 00:09:46]} {[%emt 00:00:04]} 7. Nde2 {[%clk 00:09:29]}
{[%emt 00:00:11]} d5 {[%clk 00:09:42]} {[%emt 00:00:04]} 8. exd5 {[%clk
00:09:16]} {[%emt 00:00:13]} Nxd5 {[%clk 00:09:03]} {[%emt 00:00:40]} 9. Bd2
{[%clk 00:09:08]} {[%emt 00:00:08]} Qh4+ {[%clk 00:08:14]} {[%emt 00:00:48]} 10.
Ng3 {[%clk 00:08:32]} {[%emt 00:00:36]} Bd6 {[%clk 00:07:17]} {[%emt 00:00:57]}
11. Nce4 {[%clk 00:07:50]} {[%emt 00:00:43]} Be7 {[%clk 00:06:50]} {[%emt
00:00:27]} 12. Bb5 {[%clk 00:07:24]} {[%emt 00:00:26]} f5 {[%clk 00:06:39]}
{[%emt 00:00:11]} 13. Nf2 {[%clk 00:06:39]} {[%emt 00:00:45]} O-O {[%clk
00:06:07]} {[%emt 00:00:32]} 14. Bxc6 {[%clk 00:06:18]} {[%emt 00:00:21]} bxc6
{[%clk 00:06:05]} {[%emt 00:00:01]} 15. Qe2 {[%clk 00:06:04]} {[%emt 00:00:14]}
Rb8 {[%clk 00:05:31]} {[%emt 00:00:35]} 16. O-O-O {[%clk 00:05:37]} {[%emt
00:00:26]} Qa4 {[%clk 00:04:31]} {[%emt 00:00:59]} 17. Kb1 {[%clk 00:05:03]}
{[%emt 00:00:35]} Bf6 {[%clk 00:04:07]} {[%emt 00:00:25]} 18. Nd3 {[%clk
00:04:25]} {[%emt 00:00:37]} Bxb2 {[%clk 00:03:23]} {[%emt 00:00:44]} 19. Nxb2
{[%clk 00:04:11]} {[%emt 00:00:14]} Qa3 {[%clk 00:03:07]} {[%emt 00:00:16]} 20.
Qe5 {[%clk 00:03:56]} {[%emt 00:00:15]} Ba6 {[%clk 00:02:42]} {[%emt 00:00:25]}
21. Qd4 {[%clk 00:02:26]} {[%emt 00:01:30]} Bc4 {[%clk 00:02:12]} {[%emt
00:00:30]} 22. Be1 {[%clk 00:01:53]} {[%emt 00:00:33]} Rb7 {[%clk 00:01:43]}
{[%emt 00:00:30]} 23. Kc1 {[%clk 00:01:38]} {[%emt 00:00:14]} Bxa2 {[%clk
00:01:27]} {[%emt 00:00:15]} 24. Rd3 {[%clk 00:01:17]} {[%emt 00:00:22]} Qa6
{[%clk 00:01:08]} {[%emt 00:00:20]} 25. Bc3 {[%clk 00:01:03]} {[%emt 00:00:14]}
Nxc3 {[%clk 00:00:52]} {[%emt 00:00:16]} 26. Qxc3 {[%clk 00:00:55]} {[%emt
00:00:07]} Bd5 {[%clk 00:00:50]} {[%emt 00:00:02]} 27. Re1 {[%clk 00:00:50]}
{[%emt 00:00:05]} Qa1+ {[%clk 00:00:49]} {[%emt 00:00:02]} 28. Kd2 {[%clk
00:00:47]} {[%emt 00:00:02]} Qxb2 {[%clk 00:00:47]} {[%emt 00:00:02]} 29. Qxb2
{[%clk 00:00:41]} {[%emt 00:00:06]} Rxb2 {[%clk 00:00:46]} {[%emt 00:00:01]} 30.
Ra1 {[%clk 00:00:39]} {[%emt 00:00:02]} Rb7 {[%clk 00:00:42]} {[%emt 00:00:04]}
31. Rda3 {[%clk 00:00:36]} {[%emt 00:00:03]} Rff7 {[%clk 00:00:41]} {[%emt
00:00:02]} 32. Ne2 {[%clk 00:00:33]} {[%emt 00:00:03]} c5 {[%clk 00:00:39]}
{[%emt 00:00:02]} 33. Nf4 {[%clk 00:00:31]} {[%emt 00:00:01]} Rfd7 {[%clk
00:00:36]} {[%emt 00:00:04]} 34. Nxd5 {[%clk 00:00:29]} {[%emt 00:00:02]} exd5
{[%clk 00:00:34]} {[%emt 00:00:02]} 35. Ra5 {[%clk 00:00:27]} {[%emt 00:00:02]}
Rbc7 {[%clk 00:00:32]} {[%emt 00:00:02]} 36. Kd3 {[%clk 00:00:24]} {[%emt
00:00:02]} Kf7 {[%clk 00:00:32]} 37. g3 {[%clk 00:00:22]} {[%emt 00:00:02]} Ke6
{[%clk 00:00:31]} 38. c3 {[%clk 00:00:21]} {[%emt 00:00:01]} g6 {[%clk
00:00:28]} {[%emt 00:00:03]} 39. Ra6+ {[%clk 00:00:20]} {[%emt 00:00:01]} Kf7
{[%clk 00:00:26]} {[%emt 00:00:02]} 40. R1a3 {[%clk 00:00:17]} {[%emt
00:00:03]} Re7 {[%clk 00:00:25]} 41. h3 {[%clk 00:00:15]} {[%emt 00:00:03]}
Rcd7 {[%clk 00:00:22]} {[%emt 00:00:02]} 42. Rc6 {[%clk 00:00:12]} {[%emt
00:00:03]} c4+ {[%clk 00:00:20]} {[%emt 00:00:02]} 43. Kd2 {[%clk 00:00:10]}
{[%emt 00:00:02]} Re6 {[%clk 00:00:13]} {[%emt 00:00:07]} 44. Rxe6 Kxe6 {[%clk
00:00:12]} 45. Ra6+ {[%clk 00:00:07]} {[%emt 00:00:02]} Ke5 {[%clk 00:00:10]}
{[%emt 00:00:01]} 46. Ke3 {[%clk 00:00:05]} {[%emt 00:00:02]} f4+ {[%clk
00:00:07]} {[%emt 00:00:03]} 47. gxf4+ {[%clk 00:00:04]} {[%emt 00:00:01]} Kf5
{[%clk 00:00:07]} {[%emt 00:00:01]} 48. Ra5 {[%clk 00:00:02]} {[%emt 00:00:02]}
Re7+ {[%clk 00:00:06]} {[%emt 00:00:01]} 49. Rb5 {[%clk 00:00:01]} 0-1

[Event "Božićni turnir u VaraždinskimToplicama 26.12.2025."]
[Site "Varazdinske Toplice, Croatia"]
[Date "2025.12.26"]
[Round "4.7"]
[White "Vidovic, Sasa"]
[Black "Hostnjak, Domagoj"]
[Result "1-0"]
[TimeControl "10"]
[WhiteFideId "14505010"]
[BlackFideId "14541548"]
[WhiteElo "2202"]
[BlackElo "1803"]

1. b3 {[%clk 00:09:58]} {[%emt 00:00:01]} d5 {[%clk 00:09:59]} {[%emt
00:00:02]} 2. Bb2 {[%clk 00:09:58]} c5 {[%clk 00:09:57]} {[%emt 00:00:03]} 3.
e3 {[%clk 00:09:57]} {[%emt 00:00:01]} e6 {[%clk 00:09:53]} {[%emt 00:00:03]} 4.
f4 {[%clk 00:09:56]} Nf6 {[%clk 00:09:52]} {[%emt 00:00:02]} 5. Nf3 {[%clk
00:09:56]} a6 {[%clk 00:09:45]} {[%emt 00:00:08]} 6. Bd3 {[%clk 00:09:54]} Nc6
{[%clk 00:09:44]} {[%emt 00:00:02]} 7. O-O {[%clk 00:09:53]} {[%emt 00:00:02]}
Be7 {[%clk 00:09:38]} {[%emt 00:00:05]} 8. Qe1 {[%clk 00:09:52]} Nb4 {[%clk
00:08:49]} {[%emt 00:00:50]} 9. Qg3 {[%clk 00:09:50]} {[%emt 00:00:01]} Nxd3
{[%clk 00:08:37]} {[%emt 00:00:13]} 10. cxd3 {[%clk 00:09:49]} {[%emt
00:00:01]} O-O {[%clk 00:08:03]} {[%emt 00:00:34]} 11. d4 {[%clk 00:09:44]}
{[%emt 00:00:05]} Ne4 {[%clk 00:07:40]} {[%emt 00:00:22]} 12. Qe1 {[%clk
00:09:43]} {[%emt 00:00:02]} cxd4 {[%clk 00:07:36]} {[%emt 00:00:05]} 13. Bxd4
{[%clk 00:09:41]} {[%emt 00:00:01]} Bf6 {[%clk 00:07:26]} {[%emt 00:00:08]} 14.
d3 {[%clk 00:09:36]} {[%emt 00:00:07]} Bxd4 {[%clk 00:07:19]} {[%emt 00:00:07]}
15. Nxd4 {[%clk 00:09:34]} {[%emt 00:00:03]} Nd6 {[%clk 00:07:17]} {[%emt
00:00:01]} 16. Nd2 {[%clk 00:09:27]} {[%emt 00:00:08]} Bd7 {[%clk 00:07:07]}
{[%emt 00:00:09]} 17. N2f3 {[%clk 00:09:25]} {[%emt 00:00:02]} Rc8 {[%clk
00:06:44]} {[%emt 00:00:22]} 18. Qb4 {[%clk 00:09:20]} {[%emt 00:00:06]} Qc7
{[%clk 00:06:25]} {[%emt 00:00:18]} 19. h3 {[%clk 00:09:09]} {[%emt 00:00:11]}
a5 {[%clk 00:06:01]} {[%emt 00:00:24]} 20. Qd2 {[%clk 00:08:46]} {[%emt
00:00:24]} b6 {[%clk 00:05:51]} {[%emt 00:00:10]} 21. Rac1 {[%clk 00:08:37]}
{[%emt 00:00:09]} Qb7 {[%clk 00:05:44]} {[%emt 00:00:07]} 22. Ne5 {[%clk
00:08:25]} {[%emt 00:00:12]} Rxc1 {[%clk 00:05:38]} {[%emt 00:00:07]} 23. Rxc1
{[%clk 00:08:24]} {[%emt 00:00:01]} Rc8 {[%clk 00:05:10]} {[%emt 00:00:26]} 24.
Qb2 {[%clk 00:06:57]} {[%emt 00:01:28]} f6 {[%clk 00:04:53]} {[%emt 00:00:17]}
25. Nef3 {[%clk 00:06:46]} {[%emt 00:00:12]} Rxc1+ {[%clk 00:04:45]} {[%emt
00:00:07]} 26. Qxc1 {[%clk 00:06:45]} Qc8 {[%clk 00:04:43]} {[%emt 00:00:02]}
27. Qa3 {[%clk 00:06:38]} {[%emt 00:00:08]} Qc5 {[%clk 00:04:34]} {[%emt
00:00:06]} 28. Qb2 {[%clk 00:06:31]} {[%emt 00:00:09]} Kf7 {[%clk 00:04:27]}
{[%emt 00:00:07]} 29. Kf2 {[%clk 00:06:30]} {[%emt 00:00:01]} Bb5 {[%clk
00:04:18]} {[%emt 00:00:08]} 30. Qd2 {[%clk 00:06:14]} {[%emt 00:00:17]} Bd7
{[%clk 00:04:05]} {[%emt 00:00:13]} 31. g4 {[%clk 00:06:07]} {[%emt 00:00:07]}
Nb5 {[%clk 00:03:41]} {[%emt 00:00:24]} 32. Nxb5 {[%clk 00:06:00]} {[%emt
00:00:07]} Bxb5 {[%clk 00:03:39]} {[%emt 00:00:02]} 33. Nd4 {[%clk 00:05:59]}
{[%emt 00:00:02]} Bd7 {[%clk 00:03:38]} 34. Nf3 {[%clk 00:05:32]} {[%emt
00:00:28]} Bc6 {[%clk 00:03:35]} {[%emt 00:00:02]} 35. d4 {[%clk 00:05:27]}
{[%emt 00:00:05]} Qb5 {[%clk 00:03:32]} {[%emt 00:00:03]} 36. Qc2 {[%clk
00:05:21]} {[%emt 00:00:07]} Bd7 {[%clk 00:03:26]} {[%emt 00:00:05]} 37. Qxh7
{[%clk 00:05:16]} {[%emt 00:00:05]} Qc6 {[%clk 00:03:18]} {[%emt 00:00:08]} 38.
g5 {[%clk 00:05:07]} {[%emt 00:00:10]} Kf8 {[%clk 00:02:13]} {[%emt 00:01:04]}
39. g6 {[%clk 00:04:36]} {[%emt 00:00:32]} Qc2+ {[%clk 00:02:10]} {[%emt
00:00:02]} 40. Kg3 {[%clk 00:04:35]} {[%emt 00:00:01]} Be8 {[%clk 00:01:34]}
{[%emt 00:00:37]} 41. Qh8+ {[%clk 00:04:33]} {[%emt 00:00:01]} Ke7 {[%clk
00:01:33]} {[%emt 00:00:01]} 42. Qxg7+ {[%clk 00:04:32]} Kd6 {[%clk 00:01:29]}
{[%emt 00:00:03]} 43. Qf8+ {[%clk 00:04:24]} {[%emt 00:00:10]} Kd7 {[%clk
00:01:27]} {[%emt 00:00:01]} 44. Qxf6 {[%clk 00:04:22]} {[%emt 00:00:02]} 1-0

[Event "Božićni turnir u VaraždinskimToplicama 26.12.2025."]
[Site "Varazdinske Toplice, Croatia"]
[Date "2025.12.26"]
[Round "4.8"]
[White "Zelenika, Zoran"]
[Black "Kunovac, Marin"]
[Result "0-1"]
[TimeControl "10"]
[WhiteFideId "14534452"]
[BlackFideId "79326005"]
[WhiteElo "2031"]
[BlackElo "1415"]

1. Nf3 {[%clk 00:09:58]} {[%emt 00:00:01]} Nf6 {[%clk 00:09:56]} {[%emt
00:00:04]} 2. g3 {[%clk 00:09:58]} {[%emt 00:00:02]} d5 {[%clk 00:09:52]}
{[%emt 00:00:04]} 3. Bg2 {[%clk 00:09:57]} Nc6 {[%clk 00:09:47]} {[%emt
00:00:06]} 4. d4 {[%clk 00:09:55]} g6 {[%clk 00:09:40]} {[%emt 00:00:07]} 5.
O-O {[%clk 00:09:54]} {[%emt 00:00:01]} Bg7 {[%clk 00:09:39]} {[%emt 00:00:02]}
6. c4 {[%clk 00:09:52]} {[%emt 00:00:01]} e6 {[%clk 00:09:32]} {[%emt
00:00:07]} 7. Nc3 {[%clk 00:09:50]} {[%emt 00:00:02]} O-O {[%clk 00:09:22]}
{[%emt 00:00:10]} 8. Ne5 {[%clk 00:09:50]} {[%emt 00:00:01]} Nxe5 {[%clk
00:09:04]} {[%emt 00:00:18]} 9. dxe5 {[%clk 00:09:48]} {[%emt 00:00:01]} Nd7
{[%clk 00:09:01]} {[%emt 00:00:03]} 10. cxd5 {[%clk 00:09:46]} {[%emt
00:00:02]} Nxe5 {[%clk 00:08:56]} {[%emt 00:00:05]} 11. dxe6 {[%clk 00:09:39]}
{[%emt 00:00:07]} Qxd1 {[%clk 00:08:51]} {[%emt 00:00:05]} 12. exf7+ {[%clk
00:09:31]} {[%emt 00:00:08]} Nxf7 {[%clk 00:08:47]} {[%emt 00:00:03]} 13. Rxd1
{[%clk 00:09:29]} {[%emt 00:00:03]} Bxc3 {[%clk 00:08:43]} {[%emt 00:00:04]} 14.
bxc3 {[%clk 00:09:28]} {[%emt 00:00:01]} Re8 {[%clk 00:08:42]} {[%emt
00:00:02]} 15. Bf4 {[%clk 00:09:16]} {[%emt 00:00:12]} c6 {[%clk 00:08:32]}
{[%emt 00:00:10]} 16. e4 {[%clk 00:09:06]} {[%emt 00:00:09]} Be6 {[%clk
00:08:25]} {[%emt 00:00:07]} 17. a3 {[%clk 00:08:57]} {[%emt 00:00:09]} Bg4
{[%clk 00:08:16]} {[%emt 00:00:09]} 18. Rd2 {[%clk 00:08:39]} {[%emt 00:00:17]}
Red8 {[%clk 00:08:12]} {[%emt 00:00:05]} 19. Raa2 {[%clk 00:08:35]} {[%emt
00:00:04]} Rxd2 {[%clk 00:07:58]} {[%emt 00:00:14]} 20. Rxd2 {[%clk 00:08:33]}
{[%emt 00:00:02]} Rd8 {[%clk 00:07:57]} {[%emt 00:00:01]} 21. Rxd8+ {[%clk
00:08:06]} {[%emt 00:00:27]} Nxd8 {[%clk 00:07:55]} {[%emt 00:00:02]} 22. h3
{[%clk 00:07:59]} {[%emt 00:00:07]} Be6 {[%clk 00:07:52]} {[%emt 00:00:02]} 23.
Bc7 {[%clk 00:07:49]} {[%emt 00:00:10]} Nf7 {[%clk 00:07:50]} {[%emt 00:00:03]}
24. f4 {[%clk 00:07:43]} {[%emt 00:00:06]} Bd7 {[%clk 00:07:44]} {[%emt
00:00:06]} 25. g4 {[%clk 00:07:37]} {[%emt 00:00:06]} Nh6 {[%clk 00:07:33]}
{[%emt 00:00:10]} 26. Kf2 {[%clk 00:07:18]} {[%emt 00:00:19]} Kf7 {[%clk
00:07:29]} {[%emt 00:00:04]} 27. f5 {[%clk 00:07:10]} {[%emt 00:00:09]} gxf5
{[%clk 00:07:25]} {[%emt 00:00:05]} 28. exf5 {[%clk 00:07:09]} {[%emt
00:00:01]} Kf6 {[%clk 00:07:09]} {[%emt 00:00:15]} 29. Ke3 {[%clk 00:07:03]}
{[%emt 00:00:04]} Nf7 {[%clk 00:07:00]} {[%emt 00:00:11]} 30. Kf4 {[%clk
00:06:53]} {[%emt 00:00:09]} h6 {[%clk 00:06:53]} {[%emt 00:00:08]} 31. h4
{[%clk 00:06:49]} {[%emt 00:00:04]} b5 {[%clk 00:06:44]} {[%emt 00:00:10]} 32.
Be4 {[%clk 00:06:29]} {[%emt 00:00:19]} a6 {[%clk 00:06:32]} {[%emt 00:00:13]}
33. Bb1 {[%clk 00:06:22]} {[%emt 00:00:05]} c5 {[%clk 00:06:20]} {[%emt
00:00:13]} 34. Be4 {[%clk 00:06:18]} {[%emt 00:00:03]} Bc8 {[%clk 00:06:12]}
{[%emt 00:00:10]} 35. Bd5 {[%clk 00:06:13]} {[%emt 00:00:04]} Nh8 {[%clk
00:05:43]} {[%emt 00:00:29]} 36. Be5+ {[%clk 00:06:09]} {[%emt 00:00:03]} 0-1

[Event "Božićni turnir u VaraždinskimToplicama 26.12.2025."]
[Site "Varazdinske Toplice, Croatia"]
[Date "2025.12.26"]
[Round "4.9"]
[White "Fodor, Ivan"]
[Black "Vukmirovic, Dusan"]
[Result "0-1"]
[TimeControl "10"]
[WhiteFideId "14509890"]
[BlackFideId "938785"]
[WhiteElo "1855"]
[BlackElo "2082"]

1. e4 {[%clk 00:09:58]} {[%emt 00:00:03]} c5 {[%clk 00:09:58]} {[%emt
00:00:03]} 2. Nf3 {[%clk 00:09:56]} {[%emt 00:00:01]} Nc6 {[%clk 00:09:55]}
{[%emt 00:00:03]} 3. d3 {[%clk 00:09:55]} {[%emt 00:00:01]} e5 {[%clk
00:09:51]} {[%emt 00:00:04]} 4. Be2 {[%clk 00:09:53]} {[%emt 00:00:02]} d6
{[%clk 00:09:50]} {[%emt 00:00:02]} 5. Nc3 {[%clk 00:09:50]} {[%emt 00:00:02]}
Nf6 {[%clk 00:09:27]} {[%emt 00:00:23]} 6. O-O {[%clk 00:09:45]} {[%emt
00:00:04]} h6 {[%clk 00:09:26]} {[%emt 00:00:02]} 7. h3 {[%clk 00:09:42]}
{[%emt 00:00:03]} Be6 {[%clk 00:09:24]} {[%emt 00:00:01]} 8. Re1 {[%clk
00:09:32]} {[%emt 00:00:10]} Be7 {[%clk 00:09:20]} {[%emt 00:00:04]} 9. Nh2
{[%clk 00:09:27]} {[%emt 00:00:06]} Qd7 {[%clk 00:09:13]} {[%emt 00:00:07]} 10.
f4 {[%clk 00:09:23]} {[%emt 00:00:04]} exf4 {[%clk 00:09:05]} {[%emt 00:00:08]}
11. Bxf4 {[%clk 00:09:21]} {[%emt 00:00:02]} O-O {[%clk 00:08:43]} {[%emt
00:00:22]} 12. a3 {[%clk 00:08:33]} {[%emt 00:00:48]} a6 {[%clk 00:08:38]}
{[%emt 00:00:05]} 13. Na4 {[%clk 00:08:25]} {[%emt 00:00:08]} Qd8 {[%clk
00:08:19]} {[%emt 00:00:19]} 14. b3 {[%clk 00:08:11]} {[%emt 00:00:14]} Nd4
{[%clk 00:08:05]} {[%emt 00:00:14]} 15. Bf1 {[%clk 00:08:06]} {[%emt 00:00:05]}
d5 {[%clk 00:07:53]} {[%emt 00:00:12]} 16. c3 {[%clk 00:07:45]} {[%emt
00:00:21]} Nc6 {[%clk 00:07:46]} {[%emt 00:00:07]} 17. e5 {[%clk 00:07:28]}
{[%emt 00:00:17]} Nd7 {[%clk 00:07:26]} {[%emt 00:00:20]} 18. d4 {[%clk
00:07:27]} {[%emt 00:00:01]} b5 {[%clk 00:07:18]} {[%emt 00:00:08]} 19. Nb2
{[%clk 00:07:21]} {[%emt 00:00:05]} cxd4 {[%clk 00:07:00]} {[%emt 00:00:19]} 20.
cxd4 {[%clk 00:07:17]} {[%emt 00:00:03]} Qb6 {[%clk 00:06:58]} {[%emt
00:00:02]} 21. Nf3 {[%clk 00:07:00]} {[%emt 00:00:17]} f6 {[%clk 00:06:52]}
{[%emt 00:00:07]} 22. exf6 {[%clk 00:06:42]} {[%emt 00:00:17]} Rxf6 {[%clk
00:06:51]} {[%emt 00:00:01]} 23. Be3 {[%clk 00:06:35]} {[%emt 00:00:07]} Raf8
{[%clk 00:06:46]} {[%emt 00:00:06]} 24. Nh2 {[%clk 00:05:30]} {[%emt 00:01:04]}
Bd6 {[%clk 00:06:44]} {[%emt 00:00:03]} 25. Ng4 {[%clk 00:05:14]} {[%emt
00:00:15]} R6f7 {[%clk 00:06:25]} {[%emt 00:00:19]} 26. Ne5 {[%clk 00:04:41]}
{[%emt 00:00:34]} Ndxe5 {[%clk 00:06:13]} {[%emt 00:00:12]} 27. dxe5 {[%clk
00:04:34]} {[%emt 00:00:08]} Bc5 {[%clk 00:05:59]} {[%emt 00:00:13]} 28. Bxc5
{[%clk 00:04:26]} {[%emt 00:00:07]} Qxc5+ {[%clk 00:05:58]} {[%emt 00:00:02]}
29. Kh1 {[%clk 00:04:19]} {[%emt 00:00:05]} Nxe5 {[%clk 00:05:33]} {[%emt
00:00:27]} 30. Qe2 {[%clk 00:03:44]} {[%emt 00:00:35]} Qd6 {[%clk 00:04:52]}
{[%emt 00:00:41]} 31. Nd3 {[%clk 00:03:28]} {[%emt 00:00:16]} Nxd3 {[%clk
00:04:46]} {[%emt 00:00:06]} 32. Qxe6 {[%clk 00:03:20]} {[%emt 00:00:07]} Qxe6
{[%clk 00:04:42]} {[%emt 00:00:05]} 33. Rxe6 {[%clk 00:03:16]} {[%emt
00:00:03]} Rxf1+ {[%clk 00:04:41]} {[%emt 00:00:02]} 34. Rxf1 {[%clk 00:03:15]}
{[%emt 00:00:02]} Rxf1+ {[%clk 00:04:39]} 35. Kh2 {[%clk 00:03:14]} {[%emt
00:00:01]} Rf2 {[%clk 00:04:24]} {[%emt 00:00:15]} 36. Kg3 {[%clk 00:03:03]}
{[%emt 00:00:11]} Rxg2+ {[%clk 00:04:21]} {[%emt 00:00:02]} 37. Kf3 {[%clk
00:02:56]} {[%emt 00:00:07]} Rh2 {[%clk 00:04:07]} {[%emt 00:00:14]} 38. Rxa6
{[%clk 00:02:49]} {[%emt 00:00:08]} Rxh3+ {[%clk 00:04:06]} {[%emt 00:00:01]}
39. Ke2 {[%clk 00:02:34]} {[%emt 00:00:15]} Nc1+ {[%clk 00:03:58]} {[%emt
00:00:07]} 40. Kd1 {[%clk 00:02:32]} {[%emt 00:00:03]} Nxb3 {[%clk 00:03:56]}
{[%emt 00:00:01]} 41. Rb6 {[%clk 00:02:26]} {[%emt 00:00:07]} h5 {[%clk
00:03:51]} {[%emt 00:00:05]} 42. Rxb5 {[%clk 00:02:22]} {[%emt 00:00:03]} Rh1+
{[%clk 00:03:49]} {[%emt 00:00:02]} 43. Kc2 {[%emt 00:00:09]} Rd1 44. Kxd1
{[%clk 00:01:58]} 0-1